fUST/lending_fUST_20251225
["ID","MTS","AMOUNT","RATE_DAILY","PERIOD"]
[399725329,1766638232190,-294.33,9.813e-05,2]
[399725330,1766638232200,-999.0,0.00010959,2]
[399725331,1766638232210,-479.40302135,0.00011034,2]
[399725332,1766638232220,-204.0,0.00011107,2]
[399725333,1766638232230,-1872.07859204,0.00011332,2]
[399725334,1766638232240,-300.0,0.00011411,2]
[399725335,1766638232250,-10366.0555408,0.00011412,2]
[399725336,1766638232260,-462.5267562,0.0001149,2]
[399725337,1766638232273,-37.4732438,0.0001149,2]
[399725338,1766638232283,-177.82404338,0.0001149,2]
[399725339,1766638232295,-449.18668868,0.0001149,2]
[399725340,1766638232304,-500.0,0.0001149,2]
[399725341,1766638232314,-483.50787064,0.0001149,2]
[399725342,1766638232324,-500.0,0.0001149,2]
[399725343,1766638232334,-500.0,0.0001149,2]
[399725344,1766638232344,-242.79911828,0.0001149,2]
[399725345,1766638232353,-552.54939686,0.0001149,2]
[399725346,1766638232369,-73739.55087904,0.00011491,2]
[399725347,1766638232387,-1027.6,0.00011491,2]
[399725348,1766638232399,-975.72973871,0.00011491,2]
[399729374,1766639350255,-3693.70177794,5.151e-05,2]
[399729375,1766639350291,-150.0,5.288e-05,2]
[399729376,1766639350324,-150.0,5.464e-05,2]
[399729377,1766639350357,-121.15885082,5.961e-05,2]
[399729477,1766639431809,-150.0,5.241e-05,2]
[399729479,1766639431820,-150.0,5.717e-05,2]
[399729481,1766639431830,-238.49401056,7.222e-05,2]
[399729490,1766639431917,-45.6133156,7.222e-05,2]
[399729492,1766639431928,-177.0,7.288e-05,2]
[399729494,1766639431938,-284.10732616,8.72e-05,2]
[399729496,1766639431947,-142.85170537,9.288e-05,2]
[399729535,1766639438320,-61.14829463,9.288e-05,2]
[399729536,1766639438332,-500.0,0.00010216,2]
[399729537,1766639438343,-314.05074742,0.00010216,2]
[399729538,1766639438353,-483.25322701,0.00010216,2]
[399729539,1766639438369,-300.0,0.00010216,2]
[399729540,1766639438380,-284.10732616,0.00010218,2]
[399729541,1766639438390,-13520.15040478,0.00010218,2]
[399729542,1766639438402,-5004.89252433,0.00010218,2]
[399729543,1766639438414,-2447.396,0.00010218,2]
[399729544,1766639438427,-539.724,0.00010218,2]
[399729545,1766639438439,-1629.91463503,0.00010218,2]
[399729546,1766639438449,-193.0235819,0.00011078,2]
[399729547,1766639438459,-193.0235819,0.00011078,2]
[399729548,1766639438469,-193.0235819,0.00011078,2]
[399729549,1766639438480,-193.0235819,0.00011078,2]
[399729550,1766639438490,-500.0,0.00011133,2]
[399729551,1766639438500,-500.0,0.00011133,2]
[399729552,1766639438510,-212.29004734,0.00011133,2]
[399729553,1766639438520,-2085.01924204,0.00011134,2]
[399731407,1766640338244,-150.0,5.129e-05,2]
[399731408,1766640338276,-150.0,5.296e-05,2]
[399731409,1766640338308,-150.0,5.645e-05,2]
[399731410,1766640338340,-150.0,6.119e-05,2]
[399731411,1766640338373,-150.0,6.59e-05,2]
[399731412,1766640338403,-157.29,6.994e-05,2]
[399731413,1766640338434,-252.98770851,7.222e-05,2]
[399731414,1766640338468,-177.0,7.296e-05,2]
[399731415,1766640338500,-188.75,7.46e-05,2]
[399731416,1766640338538,-220.21,7.926e-05,2]
[399731417,1766640338567,-300.0,8.391e-05,2]
[399731418,1766640338598,-1200.0,8.391e-05,2]
[399731419,1766640338633,-251.67,8.392e-05,2]
[399731420,1766640338663,-9719.08189349,8.392e-05,2]
[399731421,1766640338690,-1200.0,8.472e-05,2]
[399731422,1766640338720,-283.13,8.859e-05,2]
[399731423,1766640338748,-420.0,9.23e-05,2]
[399731424,1766640338777,-204.0,9.296e-05,2]
[399731425,1766640338806,-490.0,9.319e-05,2]
[399731426,1766640338836,-314.59,9.325e-05,2]
[399731427,1766640338864,-252.98770851,9.911e-05,2]
[399731428,1766640338899,-587.0,0.00010153,2]
[399731429,1766640338928,-193.0235819,0.00010412,2]
[399731430,1766640338958,-193.0235819,0.00011004,2]
[399731431,1766640338984,-193.0235819,0.00011004,2]
[399731432,1766640339009,-193.0235819,0.00011004,2]
[399731433,1766640339036,-180.00043382,0.00011033,2]
[399731434,1766640339068,-500.0,0.00011033,2]
[399731435,1766640339099,-479.20792807,0.00011033,2]
[399731458,1766640568143,-150.0,5.189e-05,2]
[399731459,1766640568166,-150.0,5.425e-05,2]
[399731460,1766640568190,-150.0,5.661e-05,2]
[399731461,1766640568213,-44.32866218,6.132e-05,2]
[399731659,1766640638221,-150.0,5.253e-05,2]
[399731661,1766640638233,-150.0,5.73e-05,2]
[399731663,1766640638243,-150.0,6.208e-05,2]
[399731665,1766640638253,-177.0,7.425e-05,2]
[399731667,1766640638266,-329.12656213,8.263e-05,2]
[399731669,1766640638279,-204.0,9.425e-05,2]
[399731672,1766640638289,-329.12656213,0.00010626,2]
[399731674,1766640638299,-207.85301194,0.00010694,2]
[399731676,1766640638311,-374.1354215,0.00010694,2]
[399731678,1766640638322,-665.12963822,0.00010694,2]
[399731680,1766640638332,-815.8486193,0.00010694,2]
[399731682,1766640638344,-222.37717536,0.00010694,2]
[399731684,1766640638355,-170.95174162,0.0001077,2]
[399731686,1766640638367,-538.362,0.0001077,2]
[399731753,1766640640636,-275.99560093,0.0001077,2]
[399731754,1766640640652,-2132.43481612,0.0001077,2]
[399731755,1766640640662,-1508.0,0.00011,2]
[399731756,1766640640671,-20.79207193,0.00011033,2]
[399731757,1766640640681,-209.43046528,0.00011033,2]
[399731758,1766640640691,-500.0,0.00011033,2]
[399731759,1766640640700,-500.0,0.00011033,2]
[399731760,1766640640710,-187.9694803,0.00011033,2]
[399731761,1766640640720,-500.0,0.00011033,2]
[399731762,1766640640730,-500.0,0.00011033,2]
[399731763,1766640640740,-514.37789408,0.00011033,2]
[399731764,1766640640750,-500.0,0.00011033,2]
[399731765,1766640640760,-500.0,0.00011033,2]
[399731766,1766640640770,-500.0,0.00011033,2]
[399731767,1766640640781,-500.0,0.00011033,2]
[399731768,1766640640790,-500.0,0.00011033,2]
[399731769,1766640640799,-6371.84989699,0.00011034,2]
[399731774,1766640643423,-149.6475908,0.00011034,2]
[399731778,1766640646344,-2522.82490479,0.00011034,2]
[399731914,1766641427527,-150.0,5.251e-05,2]
[399731915,1766641427551,-150.0,5.371e-05,2]
[399731916,1766641427575,-150.0,5.729e-05,2]
[399731917,1766641427606,-150.0,6.206e-05,2]
[399731918,1766641427630,-150.0,6.684e-05,2]
[399731919,1766641427653,-150.0,7.161e-05,2]
[399731920,1766641427675,-257.69615429,7.222e-05,2]
[399731921,1766641427698,-57.30384571,7.371e-05,2]
[399732016,1766641759146,-150.0,5.314e-05,2]
[399732017,1766641759168,-150.0,5.556e-05,2]
[399732018,1766641759191,-110.85570911,5.797e-05,2]
[399732077,1766641832234,-150.0,5.255e-05,2]
[399732080,1766641832248,-504.0,5.797e-05,2]
[399732082,1766641832260,-60.7059827,7.556e-05,2]
[399732085,1766641832276,-116.2940173,7.556e-05,2]
[399732087,1766641832288,-156.57136614,8.548e-05,2]
[399732089,1766641832299,-204.0,9.556e-05,2]
[399732091,1766641832309,-57.7784238,0.00010166,2]
[399732186,1766641838375,-199.91773049,0.00010166,2]
[399732189,1766641838390,-360.00086764,0.00010859,2]
[399732191,1766641838404,-300.0,0.00010931,2]
[399732193,1766641838416,-300.0,0.00010931,2]
[399732196,1766641838430,-300.0,0.00010931,2]
[399732198,1766641838443,-1200.0,0.00010931,2]
[399732200,1766641838456,-1200.0,0.00010932,2]
[399732203,1766641838471,-500.0,0.00010933,2]
[399732205,1766641838484,-358.8763916,0.00010933,2]
[399732207,1766641838500,-500.0,0.00010933,2]
[399732209,1766641838513,-446.04198823,0.00010933,2]
[399732212,1766641838525,-500.0,0.00010933,2]
[399732214,1766641838537,-500.0,0.00010933,2]
[399732216,1766641838549,-500.0,0.00010933,2]
[399732218,1766641838561,-5.39581999,0.00010933,2]
[399732221,1766641838576,-465.89680587,0.00010933,2]
[399732223,1766641838589,-13.61075261,0.00010933,2]
[399732226,1766641838604,-486.38924739,0.00010933,2]
[399732228,1766641838616,-258.81265532,0.00010933,2]
[399732231,1766641838631,-266.18734468,0.00010933,2]
[399732233,1766641838643,-423.80496617,0.00010934,2]
[399732419,1766641840598,-9156.633293,0.00010934,2]
[399732420,1766641840650,-25849.42175035,0.00010934,2]
[399732421,1766641840665,-7338.35907695,0.00010934,2]
[399732422,1766641840680,-403.09799659,0.00010934,2]
[399732681,1766641843399,-59043.85119279,0.00010934,2]
[399732683,1766641843413,-1006.48258911,0.00010934,2]
[399732700,1766641843569,-5465.64002953,0.00010934,2]
[399732702,1766641843582,-466.91482134,0.00010934,2]
[399732704,1766641843595,-11874.6777346,0.00010934,2]
[399732707,1766641843608,-509.36935793,0.00010934,2]
[399732709,1766641843621,-19294.01464235,0.00010934,2]
[399732985,1766641846371,-880.1,0.00010934,2]
[399733000,1766641846548,-879.9514622,0.00010934,2]
[399734119,1766642052617,-200.0,0.00015951,120]
[399734120,1766642052683,-200.0,0.00016116,120]
[399734121,1766642052758,-200.0,0.00016656,120]
[399734122,1766642052818,-200.0,0.00016788,120]
[399734123,1766642052882,-200.0,0.00017192,120]
[399734124,1766642052954,-200.0,0.00017315,120]
[399734125,1766642053021,-200.0,0.00017837,120]
[399734126,1766642053084,-200.0,0.00018557,120]
[399734127,1766642053147,-14266.36241526,0.00019,120]
[399734129,1766642053214,-200.0,0.00019454,120]
[399734131,1766642053276,-200.0,0.00019609,120]
[399734132,1766642053345,-200.0,0.00020531,120]
[399734133,1766642053407,-200.0,0.00020803,120]
[399734134,1766642053467,-200.0,0.00020875,120]
[399734135,1766642053525,-15171.4709868,0.000209,120]
[399734136,1766642053589,-200.0,0.00021199,120]
[399734137,1766642053651,-200.0,0.00021373,120]
[399734138,1766642053711,-200.0,0.00021399,120]
[399734139,1766642053774,-200.0,0.0002148,120]
[399734140,1766642053839,-151.61572921,0.00021575,120]
[399734141,1766642054246,-176.20834126,0.00021689,120]
[399734142,1766642054317,-200.0,0.00022087,120]
[399734143,1766642054383,-200.0,0.00022462,120]
[399734144,1766642054449,-200.0,0.00022633,120]
[399734145,1766642054518,-200.0,0.00023359,120]
[399734146,1766642054579,-200.0,0.00023497,120]
[399734147,1766642054640,-200.0,0.00023927,120]
[399734148,1766642054701,-200.0,0.00024102,120]
[399734149,1766642054760,-200.0,0.000245,120]
[399734150,1766642054825,-200.0,0.00025149,120]
[399734151,1766642054892,-251.50838469,0.00025847,120]
[399734152,1766642054957,-200.0,0.00026262,120]
[399734153,1766642055023,-200.0,0.00026489,120]
[399734154,1766642055086,-200.0,0.00026712,120]
[399734155,1766642055147,-200.0,0.00026746,120]
[399734156,1766642055210,-200.0,0.00027053,120]
[399734157,1766642055273,-300.0,0.00028,120]
[399734158,1766642055332,-200.0,0.0002871,120]
[399734159,1766642055395,-200.0,0.00029114,120]
[399734160,1766642055456,-532.8033,0.000293,120]
[399734161,1766642055516,-200.0,0.00029397,120]
[399734162,1766642055574,-155.72685322,0.000295,120]
[399734163,1766642055629,-200.0,0.00029604,120]
[399734164,1766642055688,-400.0,0.0003,120]
[399734166,1766642055748,-1000.0,0.0003,120]
[399734168,1766642055807,-200.0,0.0003,120]
[399734169,1766642055868,-209.90993686,0.0003,120]
[399734170,1766642055929,-717.481245,0.00030137,120]
[399734171,1766642055990,-178.0,0.0003018,120]
[399734172,1766642056053,-178.0,0.0003018,120]
[399734173,1766642056116,-207.0,0.0003018,120]
[399734174,1766642056182,-200.0,0.0003025,120]
[399734175,1766642056251,-200.0,0.00030611,120]
[399734176,1766642056317,-200.0,0.00030738,120]
[399734177,1766642056388,-200.0,0.00030937,120]
[399734178,1766642056455,-532.8033,0.00031,120]
[399734179,1766642056521,-1041.66666667,0.00031,120]
[399734180,1766642056588,-325.0,0.000314,120]
[399734181,1766642056656,-178.0,0.00031689,120]
[399734182,1766642056723,-178.0,0.00031689,120]
[399734183,1766642056785,-207.0,0.00031689,120]
[399734184,1766642056847,-1444.0,0.00031945,120]
[399734185,1766642056909,-400.0,0.00032,120]
[399734186,1766642056969,-1000.0,0.00032,120]
[399734187,1766642057030,-200.0,0.00032471,120]
[399734188,1766642057091,-200.0,0.00032565,120]
[399734189,1766642057149,-532.8033,0.000327,120]
[399734190,1766642057212,-200.0,0.00032764,120]
[399734191,1766642057280,-158.0,0.000328,120]
[399734192,1766642057347,-158.0,0.000328,120]
[399734193,1766642057413,-158.0,0.000328,120]
[399734194,1766642057476,-200.000001,0.000328,120]
[399734195,1766642057542,-2557.63531643,0.000328,120]
[399734218,1766642108541,200.0,0.000328,120]
[399734219,1766642109985,200.0,0.000328,120]
[399734220,1766642137965,393.0,0.0002372,120]
[399734221,1766642139208,393.0,0.00024906,120]
[399734222,1766642140472,393.0,0.00026152,120]
[399734223,1766642141707,393.0,0.00027459,120]
[399734224,1766642142952,393.0,0.00028832,120]
[399734227,1766642144162,393.0,0.00030274,120]
[399734228,1766642145526,393.0,0.00031788,120]
[399734257,1766642250502,200.0,0.0003087,120]
[399734266,1766642318073,-150.0,5.257e-05,2]
[399734267,1766642318098,-27.0,5.644e-05,2]
[399734268,1766642318126,-123.0,5.644e-05,2]
[399734269,1766642318151,-135.46924276,5.735e-05,2]
[399734270,1766642318179,-14.53075724,5.735e-05,2]
[399734271,1766642318206,-150.0,6.213e-05,2]
[399734272,1766642318230,-39.46924276,6.691e-05,2]
[399734273,1766642318258,-110.53075724,6.691e-05,2]
[399734274,1766642318282,-150.0,7.169e-05,2]
[399734275,1766642318305,-150.0,7.549e-05,2]
[399734276,1766642318329,-177.0,7.644e-05,2]
[399734277,1766642318352,-204.0,9.644e-05,2]
[399734278,1766642318373,-258.46924276,0.00010813,2]
[399734279,1766642318398,-225.0,0.00010833,2]
[399734280,1766642318421,-500.0,0.00010833,2]
[399734281,1766642318444,-294.7633679,0.00010833,2]
[399734330,1766642365331,345.4605567,0.00032876,120]
[399734331,1766642370871,200.0,0.0003201,120]
[399734332,1766642388046,1444.0,0.00031945,120]
[399734336,1766642407315,572.0,0.00010834,2]
[399734339,1766642430533,200.0,0.00018452,120]
[399734340,1766642430613,391.15426,0.000293,120]
[399734341,1766642430772,506.0,0.00026815,120]
[399734342,1766642432035,506.0,0.00028156,120]
[399734343,1766642433297,506.0,0.00029564,120]
[399734344,1766642435215,506.0,0.00031042,120]
[399734345,1766642435312,200.0,0.000293,120]
[399734346,1766642435558,200.0,0.00031,120]
[399734347,1766642435888,506.0,0.00032594,120]
[399734348,1766642435970,277.80901,0.000327,120]
[399734354,1766642471502,377.89217214,0.00032876,120]
[399734361,1766642480226,1085.79727242,0.000327,120]
[399734362,1766642480303,195.22077164,0.000327,120]
[399734364,1766642482758,1526.53651354,0.000327,120]
[399734365,1766642482944,1815.68775794,0.000327,120]
[399734367,1766642487727,585.28657887,0.000327,120]
[399734368,1766642488836,161.08493524,0.000327,120]
[399734371,1766642490515,232.28331063,0.000327,120]
[399734372,1766642490606,200.0,0.00032078,120]
[399734374,1766642491732,468.90997646,0.000327,120]
[399734375,1766642491808,172.77537894,0.000327,120]
[399734377,1766642492170,204.64206944,0.000327,120]
[399734378,1766642493046,1062.57468561,0.000327,120]
[399734380,1766642493875,446.47577576,0.000327,120]
[399734381,1766642494650,540.98244988,0.000327,120]
[399734391,1766642511988,10243.23618289,0.000327,120]
[399734411,1766642531236,1417.32527672,0.000327,120]
[399734413,1766642550865,200.0,0.00031227,120]
[399734521,1766642729404,169.0,0.00032166,120]
[399734522,1766642731480,200.0,0.00031596,120]
[399734523,1766642772862,-363.20587389,0.00010481,2]
[399734524,1766642772888,-150.0,0.00010549,2]
[399734525,1766642772912,-165.87828744,0.00010618,2]
[399734526,1766642772936,-185.0799166,0.00010618,2]
[399734527,1766642772959,-207.23788017,0.00010734,2]
[399734528,1766642772983,-462.93597446,0.00010734,2]
[399734529,1766642777021,2151.21768,0.0003287,120]
[399734530,1766642787434,699.94285864,0.00010481,2]
[399734531,1766642790096,392.3603612,0.00010481,2]
[399734532,1766642792720,448.41184137,0.00010481,2]
[399734533,1766642795142,195.22077164,0.000327,120]
[399734534,1766642796394,868.63781793,0.000327,120]
[399734535,1766642798694,1452.55020635,0.000327,120]
[399734536,1766642799236,1221.22921083,0.000327,120]
[399734537,1766642803336,468.22926309,0.000327,120]
[399734538,1766642804289,232.28331062,0.000327,120]
[399734540,1766642807696,172.77537893,0.000327,120]
[399734541,1766642808453,204.64206943,0.000327,120]
[399734542,1766642810924,375.12798116,0.000327,120]
[399734543,1766642811802,850.05974849,0.000327,120]
[399734544,1766642813160,357.1806206,0.000327,120]
[399734545,1766642813530,432.7859599,0.000327,120]
[399734558,1766642837584,330.0,0.0003,120]
[399734584,1766642848298,1275.59274905,0.000327,120]
[399734589,1766642850541,200.0,0.0002251,120]
[399734591,1766642851516,10243.23618289,0.000327,120]
[399734688,1766643026554,200.0,0.000328,120]
[399734689,1766643027981,200.0,0.000328,120]
[399734690,1766643028655,169.0,0.00032819,120]
[399734691,1766643032417,-572.0,0.00010834,2]
[399734693,1766643032428,-7577.34909898,0.00010834,2]
[399734695,1766643032440,-303.41490542,0.00010834,2]
[399734744,1766643038535,-94785.30333452,0.00010834,2]
[399734778,1766643041228,-18643.72009334,0.00010834,2]
[399734798,1766643058921,970.900199,0.00030137,120]
[399734799,1766643083387,290.65,0.00032877,120]
[399734800,1766643101039,217.98,0.00032877,120]
[399734801,1766643114232,195.22077165,0.000327,120]
[399734802,1766643114840,694.91025435,0.000327,120]
[399734803,1766643119091,1162.04016508,0.000327,120]
[399734804,1766643119170,976.98336866,0.000327,120]
[399734805,1766643125181,374.58341048,0.000327,120]
[399734806,1766643126184,172.77537894,0.000327,120]
[399734807,1766643127217,204.64206944,0.000327,120]
[399734808,1766643131593,680.04779879,0.000327,120]
[399734809,1766643132061,300.10238493,0.000327,120]
[399734810,1766643132811,285.74449648,0.000327,120]
[399734811,1766643133874,346.22876792,0.000327,120]
[399734812,1766643166309,1148.03347414,0.000327,120]
[399734813,1766643172803,1444.0,0.00031945,120]
[399734814,1766643189239,10243.23618289,0.000327,120]
[399734988,1766643294452,326.98,0.00032877,120]
[399735022,1766643400805,161.06122593,0.000328,120]
[399735026,1766643433320,555.92820348,0.000327,120]
[399735027,1766643436100,781.58669493,0.000327,120]
[399735028,1766643436573,929.63213207,0.000327,120]
[399735029,1766643439639,299.66672838,0.000327,120]
[399735030,1766643446235,240.08190795,0.000327,120]
[399735031,1766643446311,544.03823903,0.000327,120]
[399735032,1766643446920,228.59559719,0.000327,120]
[399735033,1766643447884,276.98301434,0.000327,120]
[399735056,1766643486678,1033.23012673,0.000327,120]
[399735063,1766643520474,10243.23618289,0.000327,120]
[399735108,1766643747091,444.74256278,0.000327,120]
[399735109,1766643750455,743.70570565,0.000327,120]
[399735110,1766643750576,625.26935595,0.000327,120]
[399735111,1766643753903,239.7333827,0.000327,120]
[399735113,1766643760462,192.06552636,0.000327,120]
[399735114,1766643760544,182.87647775,0.000327,120]
[399735115,1766643760764,435.23059123,0.000327,120]
[399735116,1766643761727,221.58641147,0.000327,120]
[399735121,1766643805631,1859.81422811,0.000327,120]
[399735125,1766643831878,176.20834127,0.00023938,120]
[399735130,1766643859643,10243.23618289,0.000327,120]
[399735132,1766643865661,366.6522351,0.0001,4]
[399735141,1766643931264,200.0,0.00031938,120]
[399735145,1766643957382,1444.0,0.00031945,120]
[399735151,1766643993163,-364.44841641,9.916e-05,2]
[399735152,1766643993190,-416.5124759,9.916e-05,2]
[399735153,1766643993217,-419.03910769,9.916e-05,2]
[399735154,1766643993249,-231.11083515,9.916e-05,2]
[399735155,1766643993276,-150.0,0.00010176,2]
[399735156,1766643993303,-566.0,0.00010437,2]
[399735157,1766643993331,-1200.0,0.00010731,2]
[399735158,1766643993359,-545.0,0.00010732,2]
[399735159,1766643993384,-300.0,0.00010732,2]
[399735160,1766643993413,-214.72137496,0.00010733,2]
[399735161,1766643993440,-500.0,0.00010733,2]
[399735162,1766643993469,-500.0,0.00010733,2]
[399735163,1766643993499,-500.0,0.00010733,2]
[399735164,1766643993527,-500.0,0.00010733,2]
[399735165,1766643993555,-500.0,0.00010733,2]
[399735166,1766643993583,-1.17946443,0.00010733,2]
[399735172,1766644050806,200.0,0.00026264,120]
[399735178,1766644061964,355.79405023,0.000327,120]
[399735185,1766644066430,500.21548476,0.000327,120]
[399735186,1766644066579,594.96456452,0.000327,120]
[399735187,1766644071507,191.78670616,0.000327,120]
[399735189,1766644078515,348.18447298,0.000327,120]
[399735190,1766644078588,182.87647775,0.000327,120]
[399735191,1766644079389,192.06552636,0.000327,120]
[399735194,1766644084522,177.26912918,0.000327,120]
[399735201,1766644114015,209.90993686,0.0003,120]
[399735202,1766644116132,385.36264158,0.0003,120]
[399735203,1766644116511,191.51275126,0.000295,120]
[399735205,1766644121037,200.0,0.000245,120]
[399735206,1766644121119,1487.85138249,0.000327,120]
[399735210,1766644122077,256.82675816,0.00025847,120]
[399735211,1766644122394,1306.28764295,0.00013,30]
[399735221,1766644191891,10243.23618289,0.000327,120]
[399735251,1766644231397,200.0,0.00032184,120]
[399735252,1766644231561,-569.0,0.00010633,2]
[399735253,1766644231571,-150.0,0.00010633,2]
[399735254,1766644231581,-500.0,0.00010633,2]
[399735255,1766644231591,-189.6704158,0.00010633,2]
[399735256,1766644231601,-191.81928317,0.00010633,2]
[399735258,1766644231610,-500.0,0.00010633,2]
[399735260,1766644231621,-500.0,0.00010633,2]
[399735262,1766644231632,-500.0,0.00010633,2]
[399735264,1766644231642,-500.0,0.00010633,2]
[399735266,1766644231652,-500.0,0.00010633,2]
[399735268,1766644231662,-387.70108934,0.00010633,2]
[399735270,1766644231675,-500.0,0.00010633,2]
[399735272,1766644231684,-500.0,0.00010633,2]
[399735274,1766644231693,-500.0,0.00010633,2]
[399735276,1766644231703,-500.0,0.00010633,2]
[399735278,1766644231713,-205.83656062,0.00010633,2]
[399735280,1766644231722,-500.0,0.00010633,2]
[399735282,1766644231731,-500.0,0.00010633,2]
[399735284,1766644231741,-500.0,0.00010633,2]
[399735286,1766644231751,-500.0,0.00010633,2]
[399735288,1766644231760,-500.0,0.00010633,2]
[399735290,1766644231769,-500.0,0.00010633,2]
[399735292,1766644231779,-11.98662846,0.00010633,2]
[399735295,1766644231792,-488.01337154,0.00010633,2]
[399735297,1766644231801,-702.4072342,0.00010634,2]
[399735299,1766644231812,-525.06757274,0.00010634,2]
[399735300,1766644231824,-356.90616913,0.00010634,2]
[399735301,1766644231836,-13998.35943124,0.00010634,2]
[399735325,1766644237833,-1340.016455,0.00010634,2]
[399735328,1766644237845,-1468.40543659,0.00010634,2]
[399735330,1766644237857,-677.42648617,0.00010634,2]
[399735644,1766644240279,-8091.99176301,0.00010634,2]
[399735670,1766644242867,-16424.78728928,0.00010634,2]
[399735672,1766644242880,-311.0,0.00010634,2]
[399735673,1766644243031,-21688.79131837,0.00010634,2]
[399735682,1766644245857,-871.85190565,0.00010634,2]
[399735683,1766644245917,-765.71456297,0.00010634,2]
[399735688,1766644290830,200.0,0.00020426,120]
[399735696,1766644308627,1000.01,0.00013,30]
[399735705,1766644339139,300.0,0.0003287,120]
[399735707,1766644350507,200.0,0.00016367,120]
[399735717,1766644378514,284.63524018,0.000327,120]
[399735719,1766644383510,400.1723878,0.000327,120]
[399735720,1766644385610,475.97165162,0.000327,120]
[399735723,1766644391413,191.78670616,0.000327,120]
[399735724,1766644395034,182.87647775,0.000327,120]
[399735725,1766644395692,192.06552635,0.000327,120]
[399735726,1766644396839,278.54757838,0.000327,120]
[399735730,1766644404309,177.26912918,0.000327,120]
[399735742,1766644435723,1190.28110599,0.000327,120]
[399735868,1766644528826,10243.23618289,0.000327,120]
[399735889,1766644609014,410.0,0.0003287,120]
[399735892,1766644642922,3268.40548796,0.00032876,120]
[399735897,1766644693554,227.70819214,0.000327,120]
[399735900,1766644700105,320.13791024,0.000327,120]
[399735901,1766644701433,380.77732129,0.000327,120]
[399735905,1766644706334,191.78670617,0.000327,120]
[399735906,1766644708313,182.87647775,0.000327,120]
[399735908,1766644708886,192.06552636,0.000327,120]
[399735912,1766644711705,222.83806271,0.000327,120]
[399735915,1766644717732,177.26912918,0.000327,120]
[399735926,1766644742562,1444.0,0.00031945,120]
[399735932,1766644751629,952.22488479,0.000327,120]
[399735934,1766644802414,-207.23788017,0.00010533,2]
[399735935,1766644802438,-92.76211983,0.00010582,2]
[399735936,1766644802814,-57.23788017,0.00010582,2]
[399735937,1766644802837,-500.0,0.00010633,2]
[399735938,1766644802860,-294.64593454,0.00010633,2]
[399735939,1766644802883,-579.11294616,0.00010633,2]
[399735940,1766644802910,-500.0,0.00010633,2]
[399735941,1766644802932,-500.0,0.00010633,2]
[399735942,1766644802956,-499.03098557,0.00010633,2]
[399735943,1766644802977,-178.40480086,0.00010633,2]
[399735945,1766644806676,569.0,0.00010634,2]
[399735949,1766644831617,838.64,0.00032877,120]
[399735959,1766644857984,10000.0,0.00032877,120]
[399735962,1766644862355,300.0,0.00010633,2]
[399735963,1766644862483,10243.2361829,0.000327,120]
[399735997,1766644973001,400.0,0.00032877,120]
[399735998,1766645008567,182.16655372,0.000327,120]
[399735999,1766645012719,695.553768,0.00032877,120]
[399736000,1766645015469,304.62185704,0.000327,120]
[399736001,1766645017053,256.1103282,0.000327,120]
[399736002,1766645019382,191.78670616,0.000327,120]
[399736003,1766645020650,182.87647775,0.000327,120]
[399736004,1766645021287,192.06552635,0.000327,120]
[399736005,1766645026125,178.27045017,0.000327,120]
[399736006,1766645032263,177.26912917,0.000327,120]